fUSD/lending_fUSD_20250804
["ID","MTS","AMOUNT","RATE_DAILY","PERIOD"]
[377200229,1754289041718,-641.72,0.00046748,120]
[377200230,1754289041728,-4611.43,0.00046748,120]
[377200231,1754289041738,-1336.48,0.00046748,2]
[377200232,1754289041750,-644.56,0.00046748,120]
[377200233,1754289041760,-400.0,0.00046748,120]
[377200234,1754289041769,-753.49,0.00046748,120]
[377200235,1754289041779,-400.0,0.00046748,120]
[377200236,1754289041790,-642.54,0.00046748,120]
[377200237,1754289041800,-400.0,0.00046748,120]
[377200238,1754289041811,-400.0,0.00046748,120]
[377200239,1754289041822,-586.71,0.00046748,120]
[377200240,1754289041833,-1968.64,0.00046748,120]
[377200241,1754289041842,-607.77,0.00046748,120]
[377200242,1754289041852,-407.69,0.00046748,120]
[377200243,1754289041861,-1247.04,0.00046748,120]
[377200244,1754289041871,-413.31,0.00046748,120]
[377200245,1754289041880,-400.0,0.00046748,120]
[377200246,1754289041889,-625.55,0.00046748,120]
[377200247,1754289041899,-522.7,0.00046748,120]
[377200248,1754289041909,-1777.43,0.00046748,120]
[377200249,1754289041918,-522.59,0.00046748,120]
[377200250,1754289041928,-400.0,0.00046748,120]
[377200251,1754289041938,-244.12010438,0.00046748,24]
[377200252,1754289041948,-744.37,0.00046748,120]
[377200253,1754289041958,-1820.68,0.00046748,120]
[377200254,1754289041969,-1567.07,0.00046748,120]
[377200255,1754289041978,-1573.2,0.00046748,120]
[377200256,1754289041988,-1671.0,0.00046748,120]
[377200257,1754289042000,-1167.12,0.00046748,120]
[377200258,1754289042010,-1091.34,0.00046748,120]
[377200259,1754289042020,-2460.12882163,0.00046759,15]
[377200260,1754289042030,-2460.12882163,0.00046788,15]
[377200261,1754289042040,-500.0,0.000468,17]
[377200262,1754289042052,-271311.44181088,0.00046801,31]
[377200263,1754289042062,-11602.4762726,0.00046802,3]
[377200264,1754289042072,-4137.0,0.00046812,2]
[377200265,1754289042081,-5952.579,0.00046812,2]
[377200266,1754289042090,-2460.12882163,0.00046816,15]
[377200267,1754289042100,-40298.20015719,0.00046828,30]
[377200268,1754289042109,-139229.715272,0.00046828,3]
[377200269,1754289042119,-23204.9525453,0.00046828,3]
[377200270,1754289042128,-1547.88512474,0.00046834,2]
[377200271,1754289042138,-58012.3813631,0.00046837,3]
[377200272,1754289042147,-23204.9525453,0.00046838,3]
[377200273,1754289042156,-401.61316647,0.00046838,120]
[377200274,1754289042166,-400.0,0.00046838,120]
[377200275,1754289042176,-400.0,0.00046838,120]
[377200276,1754289042185,-400.0,0.00046838,120]
[377200277,1754289042195,-400.0,0.00046838,120]
[377200278,1754289042205,-400.0,0.00046838,120]
[377200279,1754289042215,-400.0,0.00046838,120]
[377200280,1754289042224,-1041.21,0.00046838,120]
[377200281,1754289042234,-1133.35,0.00046838,120]
[377200282,1754289042243,-632.9,0.00046838,120]
[377200283,1754289042253,-400.0,0.00046838,120]
[377200284,1754289042262,-1277.98,0.00046838,120]
[377200285,1754289042272,-420.43,0.00046838,120]
[377200286,1754289042282,-1359.49,0.00046838,120]
[377200287,1754289042291,-400.0,0.00046838,120]
[377200288,1754289042301,-1067.09,0.00046838,120]
[377200289,1754289042310,-400.0,0.00046838,120]
[377200290,1754289042320,-400.0,0.00046838,120]
[377200291,1754289042329,-1189.12,0.00046838,120]
[377200292,1754289042339,-1583.28,0.00046838,120]
[377200293,1754289042348,-400.0,0.00046838,120]
[377200294,1754289042358,-5676.26,0.00046838,118]
[377200295,1754289042367,-935.49,0.00046838,60]
[377200296,1754289042377,-446.67,0.00046838,120]
[377200297,1754289042386,-400.0,0.00046838,120]
[377200298,1754289042396,-1663.91,0.00046838,120]
[377200299,1754289042405,-499.76,0.00046838,120]
[377200300,1754289042415,-1633.56,0.00046838,120]
[377200301,1754289042424,-400.0,0.00046838,120]
[377200302,1754289042433,-400.0,0.00046838,120]
[377200303,1754289042443,-1151.84,0.00046838,120]
[377200304,1754289042452,-8322.31,0.00046838,120]
[377200305,1754289042462,-483.33,0.00046838,120]
[377200306,1754289042471,-400.0,0.00046838,120]
[377200307,1754289042481,-1785.81,0.00046838,120]
[377200308,1754289042491,-571.18,0.00046838,120]
[377200309,1754289042500,-400.0,0.00046838,120]
[377200311,1754289042510,-1287.89,0.00046838,120]
[377200313,1754289042519,-400.0,0.00046838,120]
[377200315,1754289042529,-532.79,0.00046838,120]
[377200317,1754289042539,-1198.54,0.00046838,120]
[377200319,1754289042548,-681.7,0.00046838,120]
[377200321,1754289042558,-935.43,0.00046838,120]
[377200323,1754289042568,-646.62,0.00046838,120]
[377200324,1754289042577,-1428.09,0.00046838,120]
[377200326,1754289042587,-878.86,0.00046838,120]
[377200329,1754289042597,-1420.59,0.00046838,120]
[377200332,1754289042606,-484.45,0.00046838,120]
[377200334,1754289042616,-453.58,0.00046838,120]
[377200336,1754289042626,-565.4,0.00046838,120]
[377200338,1754289042636,-698.69,0.00046838,120]
[377200340,1754289042645,-400.0,0.00046838,120]
[377200342,1754289042655,-1836.46,0.00046838,120]
[377200343,1754289042664,-2460.12882163,0.00046844,15]
[377200344,1754289042675,-400.0,0.00046847,120]
[377200345,1754289042685,-401.45450262,0.00046847,2]
[377200346,1754289042695,-503.7,0.00046847,120]
[377200347,1754289042705,-400.0,0.00046847,120]
[377200348,1754289042715,-400.0,0.00046847,120]
[377200349,1754289042724,-500.0,0.00046847,120]
[377200350,1754289042734,-400.0,0.00046847,120]
[377200351,1754289042744,-400.0,0.00046847,120]
[377200352,1754289042754,-400.5854298,0.00046847,120]
[377200353,1754289042763,-400.89249123,0.00046847,120]
[377200354,1754289042773,-400.0,0.00046847,120]
[377200355,1754289042783,-400.0,0.00046847,120]
[377200356,1754289042792,-919.45,0.00046847,120]
[377200357,1754289042802,-400.0,0.00046847,120]
[377200358,1754289042811,-400.0,0.00046847,120]
[377200359,1754289042822,-1946.89,0.00046847,120]
[377200360,1754289042834,-400.0,0.00046847,120]
[377200361,1754289042844,-400.0,0.00046847,120]
[377200362,1754289042853,-400.0,0.00046847,120]
[377200363,1754289042863,-400.0,0.00046847,120]
[377200364,1754289042873,-473.92,0.00046847,120]
[377200365,1754289042882,-400.0,0.00046847,120]
[377200366,1754289042891,-400.0,0.00046847,120]
[377200367,1754289042902,-950.9,0.00046847,120]
[377200368,1754289042912,-401.48645043,0.00046847,120]
[377200369,1754289042921,-413.37,0.00046847,120]
[377200370,1754289042930,-400.0,0.00046847,120]
[377200371,1754289042940,-400.0,0.00046847,120]
[377200372,1754289042949,-400.0,0.00046847,120]
[377200373,1754289042959,-400.63229688,0.00046847,120]
[377200374,1754289042969,-1486.46,0.00046847,120]
[377200375,1754289042979,-400.0,0.00046847,120]
[377200376,1754289042988,-400.0,0.00046847,120]
[377200377,1754289042998,-400.0,0.00046847,120]
[377200378,1754289043007,-1104.65,0.00046847,120]
[377200379,1754289043017,-400.0,0.00046847,120]
[377200380,1754289043027,-799.86,0.00046847,120]
[377200381,1754289043036,-401.02301143,0.00046847,120]
[377200382,1754289043048,-400.0,0.00046847,120]
[377200383,1754289043057,-400.0,0.00046847,120]
[377200384,1754289043067,-519.1,0.00046847,120]
[377200385,1754289043076,-400.0,0.00046847,120]
[377200386,1754289043085,-1571.19,0.00046847,120]
[377200387,1754289043094,-400.53587612,0.00046847,30]
[377200388,1754289043103,-400.0,0.00046847,120]
[377200389,1754289043113,-993.25,0.00046847,120]
[377200390,1754289043122,-1096.98,0.00046847,120]
[377200391,1754289043132,-402.09747783,0.00046847,120]
[377200392,1754289043141,-400.0,0.00046847,120]
[377200393,1754289043151,-400.0,0.00046847,120]
[377200394,1754289043161,-837.05,0.00046847,120]
[377200395,1754289043170,-1783.93,0.00046847,120]
[377200396,1754289043180,-400.0,0.00046847,120]
[377200397,1754289043190,-401.01823752,0.00046847,120]
[377200398,1754289043199,-400.0,0.00046847,120]
[377200399,1754289043209,-400.0,0.00046847,120]
[377200401,1754289043310,-1330.75,0.00046847,120]
[377200402,1754289043320,-524.66,0.00046847,120]
[377200403,1754289043329,-400.0,0.00046847,120]
[377200404,1754289043339,-400.0,0.00046847,120]
[377200405,1754289043349,-400.0,0.00046847,120]
[377200406,1754289043358,-1127.06,0.00046847,120]
[377200407,1754289043367,-402.21341149,0.00046847,120]
[377200408,1754289043376,-1047.63,0.00046847,120]
[377200409,1754289043385,-400.0,0.00046847,120]
[377200410,1754289043395,-400.0,0.00046847,120]
[377200411,1754289043405,-765.82,0.00046847,120]
[377200412,1754289043415,-400.0,0.00046847,120]
[377200413,1754289043425,-400.0,0.00046847,120]
[377200414,1754289043435,-543.21,0.00046847,120]
[377200415,1754289043445,-400.0,0.00046847,120]
[377200416,1754289043455,-400.0,0.00046847,120]
[377200417,1754289043464,-400.0,0.00046847,120]
[377200418,1754289043473,-400.0,0.00046847,120]
[377200419,1754289043483,-1028.11,0.00046847,120]
[377200420,1754289043492,-402.12659711,0.00046847,120]
[377200421,1754289043501,-400.0,0.00046847,120]
[377200422,1754289043511,-497.53,0.00046847,120]
[377200423,1754289043520,-479.19515036,0.00046847,120]
[377200424,1754289043530,-400.0,0.00046847,120]
[377200425,1754289043540,-416.94733518,0.00046847,120]
[377200426,1754289043549,-1018.94,0.00046847,120]
[377200427,1754289043559,-400.0,0.00046847,120]
[377200428,1754289043568,-400.0,0.00046847,120]
[377200429,1754289043578,-400.0,0.00046847,120]
[377200430,1754289043587,-400.0,0.00046847,120]
[377200431,1754289043598,-1635.52,0.00046847,120]
[377200432,1754289043608,-1721.98,0.00046847,120]
[377200434,1754289043617,-400.0,0.00046847,120]
[377200435,1754289043627,-400.0,0.00046847,120]
[377200436,1754289043637,-761.39,0.00046847,120]
[377200437,1754289043647,-400.0,0.00046847,120]
[377200438,1754289043656,-1108.97,0.00046847,120]
[377200439,1754289043666,-400.0,0.00046847,120]
[377200440,1754289043676,-400.0,0.00046847,120]
[377200441,1754289043686,-536.39,0.00046847,120]
[377200442,1754289043695,-400.0,0.00046847,120]
[377200443,1754289043705,-1502.44,0.00046847,120]
[377200444,1754289043716,-400.0,0.00046847,120]
[377200445,1754289043726,-400.0,0.00046847,120]
[377200446,1754289043736,-400.0,0.00046847,120]
[377200447,1754289043746,-400.0,0.00046847,120]
[377200448,1754289043755,-400.0,0.00046847,120]
[377200449,1754289043765,-400.0,0.00046847,120]
[377200451,1754289043775,-1158.05,0.00046847,120]
[377200453,1754289043784,-484.1940745,0.00046847,120]
[377200455,1754289043794,-400.0,0.00046847,120]
[377200457,1754289043803,-1211.52,0.00046847,120]
[377200458,1754289043813,-400.0,0.00046847,120]
[377200459,1754289043825,-314.44997453,0.00046847,120]
[377200461,1754289043834,-400.0,0.00046847,120]
[377200462,1754289043844,-1438.61,0.00046847,30]
[377200465,1754289043854,-500.0,0.00046847,120]
[377200466,1754289043863,-929.6,0.00046847,120]
[377200468,1754289043873,-400.0,0.00046847,120]
[377200469,1754289043883,-549.62640393,0.00046847,120]
[377200471,1754289043891,-400.0,0.00046847,120]
[377200473,1754289043901,-1305.23,0.00046847,120]
[377200475,1754289043910,-400.0,0.00046847,120]
[377200476,1754289043920,-400.0,0.00046847,120]
[377200477,1754289043930,-1054.13,0.00046847,120]
[377200478,1754289043939,-400.0,0.00046847,120]
[377200479,1754289043949,-400.0,0.00046847,120]
[377200480,1754289043958,-400.0,0.00046847,120]
[377200481,1754289043970,-400.0,0.00046847,120]
[377200482,1754289043979,-400.0,0.00046847,120]
[377200483,1754289043989,-400.0,0.00046847,120]
[377200484,1754289044000,-676.26,0.00046847,120]
[377200485,1754289044013,-400.0,0.00046847,120]
[377200486,1754289044022,-400.0,0.00046847,120]
[377200487,1754289044032,-400.0,0.00046847,120]
[377200488,1754289044041,-400.0,0.00046847,120]
[377200489,1754289044051,-400.0,0.00046847,120]
[377200490,1754289044061,-400.0,0.00046847,120]
[377200491,1754289044071,-400.0,0.00046847,120]
[377200492,1754289044080,-400.0,0.00046847,120]
[377200493,1754289044090,-400.0,0.00046847,120]
[377200494,1754289044100,-400.0,0.00046847,120]
[377200495,1754289044111,-400.0,0.00046847,120]
[377200496,1754289044121,-400.0,0.00046847,120]
[377200497,1754289044131,-400.0,0.00046847,120]
[377200498,1754289044141,-603.48,0.00046847,120]
[377200499,1754289044151,-400.0,0.00046847,120]
[377200500,1754289044161,-400.0,0.00046847,120]
[377200501,1754289044176,-1124.07,0.00046847,120]
[377200502,1754289044190,-400.0,0.00046847,120]
[377200503,1754289044200,-400.0,0.00046847,120]
[377200504,1754289044209,-884.19,0.00046847,120]
[377200505,1754289044220,-400.0,0.00046847,120]
[377200506,1754289044230,-425.18,0.00046847,120]
[377200507,1754289044239,-1069.01,0.00046847,120]
[377200508,1754289044249,-614.82,0.00046847,120]
[377200509,1754289044259,-400.0,0.00046847,120]
[377200510,1754289044268,-400.0,0.00046847,120]
[377200511,1754289044278,-972.14,0.00046847,120]
[377200512,1754289044288,-1235.05,0.00046847,120]
[377200513,1754289044298,-720.34,0.00046847,120]
[377200514,1754289044309,-1292.87,0.00046847,120]
[377200515,1754289044319,-400.0,0.00046847,120]
[377200516,1754289044330,-1874.58,0.00046847,120]
[377200517,1754289044341,-1138.15,0.00046847,120]
[377200518,1754289044352,-4132.68,0.00046847,120]
[377200519,1754289044364,-1035.18,0.00046847,120]
[377200520,1754289044373,-1813.63,0.00046847,120]
[377200521,1754289044383,-433.5,0.00046847,120]
[377200522,1754289044393,-400.0,0.00046847,120]
[377200523,1754289044404,-400.0,0.00046847,120]
[377200524,1754289044416,-5027.2,0.00046847,120]
[377200525,1754289044427,-1182.27,0.00046847,120]
[377200526,1754289044437,-400.0,0.00046847,120]
[377200527,1754289044447,-549.1,0.00046847,120]
[377200528,1754289044456,-400.0,0.00046847,120]
[377200529,1754289044466,-461.41,0.00046847,120]
[377200530,1754289044475,-400.0,0.00046847,120]
[377200531,1754289044484,-400.0,0.00046847,120]
[377200532,1754289044494,-469.14814451,0.00046847,120]
[377200533,1754289044503,-400.0,0.00046847,120]
[377200534,1754289044513,-400.0,0.00046847,120]
[377200535,1754289044522,-400.0,0.00046847,120]
[377200536,1754289044532,-1374.05,0.00046847,120]
[377200537,1754289044542,-400.0,0.00046847,120]
[377200538,1754289044552,-400.0,0.00046847,120]
[377200539,1754289044563,-400.0,0.00046847,120]
[377200540,1754289044573,-400.0,0.00046847,120]
[377200541,1754289044584,-400.0,0.00046847,120]
[377200542,1754289044595,-573.4,0.00046847,120]
[377200543,1754289044606,-400.0,0.00046847,120]
[377200544,1754289044617,-400.0,0.00046847,120]
[377200545,1754289044627,-401.81504171,0.00046847,120]
[377200546,1754289044637,-400.0,0.00046847,120]
[377200547,1754289044648,-400.0,0.00046847,120]
[377200548,1754289044658,-486.24,0.00046847,120]
[377200549,1754289044669,-318.6664553,0.00046847,120]
[377200550,1754289044679,-400.0,0.00046847,120]
[377200551,1754289044688,-400.0,0.00046847,120]
[377200552,1754289044698,-3562.36,0.00046847,120]
[377200553,1754289044707,-400.0,0.00046847,120]
[377200554,1754289044717,-540.05,0.00046847,120]
[377200555,1754289044727,-400.0,0.00046847,120]
[377200556,1754289044737,-400.0,0.00046847,120]
[377200557,1754289044747,-226.57243379,0.00046847,120]
[377200558,1754289044756,-401.40749404,0.00046847,120]
[377200559,1754289044768,-1104.38,0.00046847,120]
[377200560,1754289044777,-483.7363162,0.00046847,120]
[377200561,1754289044787,-400.0,0.00046847,120]
[377200562,1754289044796,-400.0,0.00046847,120]
[377200563,1754289044806,-400.0,0.00046847,120]
[377200564,1754289044816,-496.82,0.00046847,120]
[377200565,1754289044831,-400.0,0.00046847,120]
[377200566,1754289044840,-400.0,0.00046847,120]
[377200567,1754289044850,-500.0,0.00046847,120]
[377200568,1754289044859,-400.0,0.00046847,120]
[377200569,1754289044869,-511.55178483,0.00046847,120]
[377200570,1754289044879,-400.0,0.00046847,120]
[377200571,1754289044888,-7813.0,0.00046847,120]
[377200572,1754289044897,-1471.59,0.00046847,120]
[377200573,1754289044907,-400.0,0.00046847,120]
[377200574,1754289044916,-964.63,0.00046847,120]
[377200575,1754289044926,-400.0,0.00046847,120]
[377200576,1754289044935,-400.0,0.00046847,120]
[377200577,1754289044944,-400.0,0.00046847,120]
[377200578,1754289044954,-1161.74,0.00046847,120]
[377200579,1754289044963,-400.0,0.00046847,120]
[377200580,1754289044975,-400.0,0.00046847,120]
[377200581,1754289044984,-513.72160381,0.00046847,120]
[377200582,1754289044993,-1116.4,0.00046847,120]
[377200583,1754289045002,-400.0,0.00046847,120]
[377200584,1754289045012,-400.0,0.00046847,120]
[377200585,1754289045021,-401.88692216,0.00046847,120]
[377200586,1754289045030,-400.0,0.00046847,120]
[377200587,1754289045039,-150.0,0.00046848,120]
[377200588,1754289045049,-220.13743593,0.00046848,120]
[377200589,1754289045058,-400.0,0.00046848,120]
[377200590,1754289045068,-400.0,0.00046848,120]
[377200591,1754289045077,-348.84287429,0.00046848,2]
[377200592,1754289045087,-216.73529206,0.00046848,120]
[377200593,1754289045096,-1896.72,0.00046848,120]
[377200594,1754289045106,-604.51,0.00046848,120]
[377200595,1754289045115,-400.0,0.00046848,120]
[377200596,1754289045124,-411.84,0.00046848,120]
[377200597,1754289045135,-400.0,0.00046848,120]
[377200598,1754289045146,-452.41856397,0.00046849,120]
[377200599,1754289045155,-699.97,0.00046849,120]
[377200600,1754289045165,-831.36,0.00046849,120]
[377200601,1754289045174,-2794.9,0.00046849,14]
[377200602,1754289045183,-662.09,0.00046849,120]
[377200603,1754289045192,-4572.88,0.00046849,120]
[377200604,1754289045201,-400.0,0.00046849,120]
[377200605,1754289045210,-2770.29,0.00046849,120]
[377200606,1754289045221,-1450.99,0.00046849,120]
[377200607,1754289045230,-400.0,0.00046849,120]
[377200608,1754289045239,-991.66,0.00046849,120]
[377200609,1754289045249,-726.92,0.00046849,120]
[377200610,1754289045259,-400.0,0.00046849,2]
[377200611,1754289045268,-400.0,0.00046849,120]
[377200612,1754289045278,-400.0,0.00046849,120]
[377200613,1754289045287,-400.0,0.00046849,120]
[377200614,1754289045296,-2769.33,0.00046849,120]
[377200615,1754289045305,-660.28,0.00046849,120]
[377200616,1754289045314,-400.0,0.00046849,120]
[377200617,1754289045323,-400.0,0.00046849,120]
[377200618,1754289045332,-400.0,0.00046849,120]
[377200619,1754289045341,-400.0,0.00046849,120]
[377200620,1754289045350,-400.0,0.00046849,2]
[377200621,1754289045359,-400.0,0.00046849,120]
[377200622,1754289045370,-400.0,0.00046849,120]
[377200623,1754289045381,-627.89315963,0.00046866,15]
[377200624,1754289045391,-2460.12882163,0.00046872,15]
[377200625,1754289045401,-502.53276653,0.00046873,10]
[377200626,1754289045410,-156.35768453,0.00046889,25]
[377200627,1754289045419,-1000.0,0.000469,120]
[377200628,1754289045429,-1000.0,0.000469,120]
[377200629,1754289045439,-1000.0,0.000469,120]
[377200630,1754289045450,-1000.0,0.000469,120]
[377200631,1754289045459,-1000.0,0.000469,120]
[377200632,1754289045468,-1000.0,0.000469,120]
[377200633,1754289045477,-1000.0,0.000469,120]
[377200634,1754289045487,-1000.0,0.000469,120]
[377200635,1754289045497,-500.0,0.000469,17]
[377200636,1754289045508,-336.49437944,0.000469,30]
[377200637,1754289045518,-2460.12882163,0.000469,15]
[377200638,1754289045528,-190.87492573,0.000469,120]
[377200639,1754289045537,-256.93477993,0.000469,120]
[377200640,1754289045546,-256.93477993,0.000469,120]
[377200641,1754289045555,-256.93477993,0.000469,120]
[377200642,1754289045565,-256.93477993,0.000469,120]
[377200643,1754289045574,-256.93477993,0.000469,120]
[377200644,1754289045584,-256.93477993,0.000469,120]
[377200646,1754289045593,-256.93477993,0.000469,120]
[377200648,1754289045602,-256.93477993,0.000469,120]
[377200650,1754289045611,-256.93477993,0.000469,120]
[377200652,1754289045621,-256.93477993,0.000469,120]
[377200654,1754289045630,-256.93477993,0.000469,120]
[377200655,1754289045639,-256.93477993,0.000469,120]
[377200656,1754289045649,-256.93477993,0.000469,120]
[377200657,1754289045658,-256.93477993,0.000469,120]
[377200659,1754289045667,-256.93477993,0.000469,120]
[377200661,1754289045677,-256.93477993,0.000469,120]
[377200662,1754289045686,-256.93477993,0.000469,120]
[377200663,1754289045696,-256.93477993,0.000469,120]
[377200664,1754289045705,-256.93477993,0.000469,120]
[377200665,1754289045715,-256.93,0.000469,120]
[377200666,1754289045726,-599.51448651,0.000469,120]
[377200667,1754289045735,-599.51448651,0.000469,120]
[377200668,1754289045744,-599.51448651,0.000469,120]
[377200669,1754289045754,-599.51448651,0.000469,120]
[377200670,1754289045764,-599.51448651,0.000469,120]
[377200671,1754289045774,-599.51448651,0.000469,120]
[377200672,1754289045783,-195.07777758,0.000469,2]
[377200673,1754289045793,-599.51448651,0.000469,120]
[377200674,1754289045802,-599.51448651,0.000469,120]
[377200675,1754289045812,-599.51448651,0.000469,120]
[377200676,1754289045824,-599.51448651,0.000469,120]
[377200677,1754289045833,-599.51448651,0.000469,120]
[377200678,1754289045843,-599.51448651,0.000469,120]
[377200679,1754289045852,-599.51448651,0.000469,120]
[377200680,1754289045861,-599.51448651,0.000469,120]
[377200681,1754289045870,-599.51448651,0.000469,120]
[377200682,1754289045880,-599.51448651,0.000469,120]
[377200683,1754289045889,-599.51448651,0.000469,120]
[377200684,1754289045898,-10153.47803935,0.000469,2]
[377200685,1754289045907,-1000.0,0.000469,120]
[377200686,1754289045917,-157.38580759,0.000469,2]
[377200687,1754289045925,-400.0,0.00046913,120]
[377200688,1754289045935,-1558.36,0.00046913,120]
[377200689,1754289045944,-400.0,0.00046913,120]
[377200690,1754289045954,-400.0,0.00046913,120]
[377200691,1754289045963,-400.0,0.00046913,120]
[377200692,1754289045974,-400.0,0.00046913,120]
[377200693,1754289045983,-400.0,0.00046913,120]
[377200694,1754289045992,-400.0,0.00046913,120]
[377200695,1754289046001,-400.0,0.00046913,120]
[377200696,1754289046010,-400.0,0.00046913,120]
[377200697,1754289046019,-400.0,0.00046913,120]
[377200698,1754289046028,-400.0,0.00046913,120]
[377200699,1754289046039,-400.0,0.00046913,120]
[377200700,1754289046049,-400.0,0.00046913,120]
[377200701,1754289046060,-401.07157337,0.00046913,120]
[377200702,1754289046070,-402.17445129,0.00046913,120]
[377200703,1754289046081,-198.98570714,0.00046913,120]
[377200704,1754289046092,-400.0,0.00046913,120]
[377200705,1754289046102,-400.0,0.00046913,10]
[377200706,1754289046110,-401.75867747,0.00046913,120]
[377200707,1754289046119,-400.0,0.00046913,120]
[377200708,1754289046128,-400.0,0.00046913,120]
[377200709,1754289046137,-400.0,0.00046913,120]
[377200710,1754289046146,-2668.37943411,0.0004692,15]
[377200711,1754289046155,-599.51448651,0.00046942,120]
[377200712,1754289046164,-301.57,0.00046959,30]
[377200713,1754289046174,-302.95,0.00046959,30]
[377200714,1754289046183,-307.35,0.00046959,30]
[377200716,1754289046192,-355.26,0.00046959,30]
[377200718,1754289046201,-500.0,0.00046973,10]
[377200719,1754289046210,-500.0,0.00046973,10]
[377200720,1754289046219,-150.0,0.00046973,3]
[377200721,1754289046228,-155.70521398,0.00046989,7]
[377200722,1754289046237,-165.87931314,0.00046989,120]
[377200723,1754289046246,-500.0,0.00046989,120]
[377200724,1754289046256,-1292.87,0.00046989,120]
[377200725,1754289046265,-500.0,0.00046989,120]
[377200726,1754289046275,-300.0,0.00046989,30]
[377200727,1754289046284,-1693.32399551,0.0004699,2]
[377200728,1754289046294,-627.89315963,0.00046995,15]
[377200730,1754289046304,-500.0,0.00046999,120]
[377200731,1754289046313,-312.01142982,0.00046999,30]
[377200733,1754289046323,-500.0,0.00046999,120]
[377200735,1754289046333,-500.0,0.00046999,120]
[377200736,1754289046344,-500.0,0.00046999,120]
[377200737,1754289046354,-500.0,0.00046999,120]
[377200738,1754289046364,-500.0,0.00046999,120]
[377200739,1754289046374,-500.0,0.00046999,120]
[377200740,1754289046382,-500.0,0.00046999,120]
[377200741,1754289046392,-270.40577614,0.00046999,120]
[377200742,1754289046401,-5000.0,0.00046999,120]
[377200743,1754289046410,-1292.87,0.00046999,120]
[377200744,1754289046420,-1292.87,0.00046999,120]
[377200745,1754289046430,-1292.87,0.00046999,120]
[377200746,1754289046439,-1292.87,0.00046999,120]
[377200747,1754289046449,-1292.87,0.00046999,120]
[377200748,1754289046458,-1292.87,0.00046999,120]
[377200749,1754289046466,-1292.87,0.00046999,120]
[377200750,1754289046477,-1292.87,0.00046999,120]
[377200751,1754289046486,-1292.87,0.00046999,120]
[377200752,1754289046496,-1292.87,0.00046999,120]
[377200753,1754289046505,-1292.87,0.00046999,120]
[377200754,1754289046514,-1292.87,0.00046999,120]
[377200755,1754289046524,-1292.87,0.00046999,120]
[377200756,1754289046533,-499.999,0.00046999,120]
[377200757,1754289046542,-744.37,0.00046999,120]
[377200758,1754289046551,-500.0,0.00046999,120]
[377200759,1754289046561,-500.0,0.00046999,120]
[377200760,1754289046578,-349.67309672,0.00046999,120]
[377200761,1754289046590,-2913206.84700847,0.00047,15]
[377200762,1754289047882,-678.3,0.00046575,120]
[377200763,1754289047893,-483.85984713,0.00046575,120]
[377200764,1754289047902,-400.0,0.00046575,120]
[377200765,1754289047912,-1475.37297627,0.00046801,61]
[377200766,1754289048031,-3070.12325695,0.00046801,61]
[377200767,1754289048041,-1251.0,0.00046812,2]
[377200768,1754289048051,-400.0,0.00046838,120]
[377200769,1754289048061,-400.85296208,0.00046847,120]
[377200770,1754289048071,-400.0,0.00046849,120]